bitfinex-derivatives/quotes_BTCF0:USTF0_20251202
["timestamp","ask_amount","ask_price","bid_price","bid_amount"]
[1764717225500,0.0691451,91927.0,91926.0,0.41723]
[1764717225885,0.0691451,91927.0,91926.0,0.389]
[1764717226397,0.0691451,91927.0,91926.0,0.41723]
[1764717235702,0.0691451,91927.0,91926.0,0.51723]
[1764717238009,0.0691451,91927.0,91926.0,0.41723]
[1764717238411,0.1191451,91927.0,91926.0,0.001]
[1764717239110,0.1091451,91927.0,91926.0,0.001]
[1764717239296,0.1091451,91927.0,91922.0,0.01366699]
[1764717239297,0.0681456,91923.0,91922.0,9e-08]
[1764717239497,0.0176,91925.0,91906.0,0.0582004]
[1764717239498,0.0681473,91908.0,91906.0,0.0582004]
[1764717239697,0.0681473,91908.0,91907.0,0.05543]
[1764717239904,0.0681473,91908.0,91907.0,0.0702028]
[1764717240502,0.0681473,91908.0,91907.0,0.15775189]
[1764717240998,0.0711473,91908.0,91907.0,0.15775189]
[1764717241599,0.0681473,91908.0,91907.0,0.25775189]
[1764717241800,0.0711473,91908.0,91907.0,0.25775189]
[1764717241995,0.0711473,91908.0,91907.0,0.10232189]
[1764717242307,0.05727,91906.0,91905.0,0.47903]
[1764717242501,0.05727,91906.0,91905.0,0.49427552]
[1764717243304,0.05727,91906.0,91905.0,0.59427552]
[1764717243906,0.05927,91906.0,91905.0,0.59427552]
[1764717245811,0.02931,91906.0,91905.0,0.59427552]
[1764717246408,0.05704,91906.0,91905.0,0.59427552]
[1764717246610,0.05704,91906.0,91905.0,0.68123489]
[1764717247213,0.05704,91906.0,91905.0,0.68223489]
[1764717247814,0.05704,91906.0,91905.0,0.68123489]
[1764717249211,0.10704,91906.0,91905.0,0.55300489]
[1764717249507,0.10704,91906.0,91905.0,0.01524552]
[1764717249714,0.10704,91906.0,91898.0,0.00016319]
[1764717249715,0.0658484,91899.0,91898.0,0.00016319]
[1764717249910,0.4266484,91899.0,91898.0,0.01503551]
[1764717250999,0.4766484,91899.0,91898.0,0.01603551]
[1764717251200,0.4676484,91899.0,91898.0,0.01603551]
[1764717251403,0.4776484,91899.0,91898.0,0.01603551]
[1764717251800,0.4776484,91899.0,91898.0,0.16024972]
[1764717251801,0.0118784,91899.0,91898.0,0.16024972]
[1764717252798,0.0118784,91899.0,91898.0,0.15924972]
[1764717253001,0.0118784,91899.0,91898.0,0.26024972]
[1764717253916,0.0668484,91899.0,91898.0,0.26024972]
[1764717254309,0.0668484,91899.0,91898.0,0.16024972]
[1764717254908,0.0668484,91899.0,91898.0,0.17112822]
[1764717255108,0.0668484,91899.0,91898.0,0.16024972]
[1764717255318,0.0668484,91899.0,91898.0,0.26024972]
[1764717257125,0.0668484,91899.0,91898.0,0.10354972]
[1764717257306,0.1068484,91899.0,91898.0,0.01603551]
[1764717257619,0.1068484,91899.0,91898.0,0.07273551]
[1764717257620,0.1168484,91899.0,91898.0,0.07273551]
[1764717257814,0.0668484,91899.0,91898.0,0.07273551]
[1764717260425,0.0668484,91899.0,91898.0,0.15963189]
[1764717260721,0.0668484,91899.0,91898.0,0.07273551]
[1764717262310,0.0668484,91899.0,91898.0,0.16190306]
[1764717262514,0.0668484,91899.0,91898.0,0.05786319]
[1764717264122,0.0118784,91899.0,91898.0,0.1608166]
[1764717264323,0.0118784,91899.0,91898.0,0.1618166]
[1764717265122,0.0118784,91899.0,91898.0,0.2618166]
[1764717267724,0.0391184,91899.0,91898.0,0.2608166]
[1764717267926,0.0668484,91899.0,91898.0,0.2608166]
[1764717273531,0.0668484,91899.0,91898.0,0.1608166]
[1764717274235,0.0391184,91899.0,91898.0,0.1608166]
[1764717274430,0.0118784,91899.0,91898.0,0.1608166]
[1764717274926,0.0410184,91899.0,91898.0,0.1608166]
[1764717275335,0.0703084,91899.0,91898.0,0.1608166]
[1764717275537,0.0703084,91899.0,91898.0,0.2608166]
[1764717282426,0.0703084,91899.0,91898.0,0.1608166]
[1764717282626,0.0703084,91899.0,91898.0,0.1041166]
[1764717282832,0.1203084,91899.0,91898.0,0.1041166]
[1764717284128,0.0703084,91899.0,91898.0,0.01498406]
[1764717284844,0.1103084,91899.0,91898.0,0.01498406]
[1764717285845,0.4811084,91899.0,91898.0,0.01498406]
[1764717286237,0.50475345,91899.0,91898.0,0.01498406]
[1764717290266,0.45475345,91899.0,91898.0,0.01498406]
[1764717290863,0.50475345,91899.0,91898.0,0.01498406]
[1764717291166,0.49475345,91899.0,91898.0,0.01498406]
[1764717291362,0.50475345,91899.0,91898.0,0.01498406]
[1764717291666,0.49475345,91899.0,91898.0,0.01498406]
[1764717291864,0.45475345,91899.0,91898.0,0.01498406]
[1764717292065,0.50475345,91899.0,91898.0,0.01498406]
[1764717293054,0.0400186,91897.0,91896.0,8.739e-05]
[1764717293259,0.14295365,91897.0,91896.0,8.739e-05]
[1764717293462,0.14295365,91897.0,91889.0,0.14211444]
[1764717293769,0.4473195,91890.0,91889.0,0.14211444]
[1764717293965,0.4473195,91890.0,91882.0,0.3608]
[1764717293966,0.0693098,91887.0,91882.0,0.3608]
[1764717294364,0.1193098,91887.0,91882.0,0.44825982]
[1764717294560,0.06939134,91887.0,91882.0,0.44825982]
[1764717294768,0.06939134,91887.0,91886.0,0.01406545]
[1764717294965,0.06939134,91887.0,91886.0,0.12925583]
[1764717295161,0.06939134,91887.0,91886.0,0.15642583]
[1764717295366,0.06939134,91887.0,91886.0,0.17045167]
[1764717295768,0.06939134,91887.0,91886.0,0.19825167]
[1764717295964,0.11939134,91887.0,91886.0,0.04146792]
[1764717296269,0.06939134,91887.0,91886.0,0.01429792]
[1764717296469,0.11939134,91887.0,91886.0,0.01429792]
[1764717296773,0.11939134,91887.0,91886.0,0.01529792]
[1764717297660,0.14301956,91887.0,91886.0,0.01529792]
[1764717298172,0.11939134,91887.0,91886.0,0.01529792]
[1764717299560,0.38939134,91887.0,91886.0,2e-08]
[1764717299762,0.0693105,91881.0,91880.0,9e-08]
[1764717299968,0.0693105,91881.0,91862.0,0.43864849]
[1764717299969,0.0693127,91863.0,91862.0,0.05497]
[1764717300276,0.0693127,91863.0,91862.0,0.06940897]
[1764717300461,0.1193127,91863.0,91862.0,0.06940897]
[1764717300659,0.1193127,91863.0,91862.0,0.01443897]
[1764717300883,0.0693133,91858.0,91857.0,0.53201]
[1764717301176,0.0693133,91858.0,91846.0,0.07812069]
[1764717301177,0.0865242,91850.0,91848.0,0.14227773]
[1764717301378,0.0865242,91850.0,91849.0,0.02727021]
[1764717301564,0.0865242,91850.0,91849.0,0.05507021]
[1764717301766,0.0865242,91850.0,91849.0,0.06917378]
[1764717301966,0.0693142,91850.0,91849.0,0.06917378]
[1764717302266,0.0693142,91850.0,91849.0,0.25503703]
[1764717302568,0.05843,91855.0,91854.0,0.05497]
[1764717304169,0.02914,91855.0,91854.0,0.15697]
[1764717304572,0.0108836,91856.0,91855.0,0.0689036]
[1764717304770,0.0108836,91856.0,91855.0,0.0699036]
[1764717305076,0.0387636,91856.0,91855.0,0.05902]
[1764717305576,0.0387636,91856.0,91855.0,0.16002]
[1764717305879,0.0387636,91856.0,91855.0,0.15902]
[1764717307078,0.0108836,91856.0,91855.0,0.16002]
[1764717307267,0.0387632,91859.0,91858.0,0.0108832]
[1764717307468,0.0387632,91859.0,91858.0,0.0689032]
[1764717307469,0.0672632,91859.0,91858.0,0.0689032]
[1764717308170,0.0387632,91859.0,91858.0,0.0689032]
[1764717308377,0.0387632,91859.0,91858.0,0.1709032]
[1764717309078,0.01098081,91863.0,91862.0,0.0689028]
[1764717309377,0.01098081,91863.0,91862.0,0.4307028]
[1764717309378,9.811e-05,91863.0,91862.0,0.4307028]
[1764717310280,9.811e-05,91863.0,91862.0,0.5307028]
[1764717310869,9.811e-05,91863.0,91862.0,0.73066972]
[1764717311381,9.811e-05,91863.0,91862.0,0.73166972]
[1764717311575,9.811e-05,91863.0,91862.0,0.35998692]
[1764717311782,9.811e-05,91863.0,91862.0,0.37086972]
[1764717313473,0.05647811,91863.0,91862.0,0.25998692]
[1764717314368,0.05647811,91863.0,91862.0,0.23406091]
[1764717314771,0.05647811,91863.0,91862.0,0.13439169]
[1764717314982,0.05647811,91863.0,91862.0,0.05902]
[1764717317681,0.05647811,91863.0,91862.0,0.23101426]
[1764717319386,0.05647811,91863.0,91862.0,0.13297717]
[1764717319786,0.05647811,91863.0,91862.0,0.05902]
[1764717322285,0.05647811,91863.0,91862.0,0.22894688]
[1764717323380,0.10647811,91863.0,91862.0,0.22894688]
[1764717323587,0.05647811,91863.0,91862.0,0.22894688]
[1764717323982,0.05647811,91863.0,91862.0,0.1321067]
[1764717324394,0.05647811,91863.0,91862.0,0.05902]
[1764717324993,0.09647811,91863.0,91862.0,0.05902]
[1764717325301,0.10647811,91863.0,91862.0,0.001]
[1764717325689,0.0850542,91850.0,91849.0,0.13078381]
[1764717325882,0.0850542,91850.0,91849.0,0.01393926]
[1764717326197,0.05638,91849.0,91848.0,9e-08]
[1764717326396,0.085056,91835.0,91834.0,0.02821]
[1764717326582,0.085056,91835.0,91834.0,0.05802]
[1764717327085,0.08515938,91835.0,91834.0,0.05802]
[1764717327286,0.08515938,91835.0,91834.0,0.07302348]
[1764717327499,0.05648338,91835.0,91834.0,0.07302348]
[1764717327688,0.05648338,91835.0,91834.0,0.07402348]
[1764717328194,0.05648338,91835.0,91834.0,0.17402348]
[1764717328495,0.00010338,91835.0,91834.0,0.26188463]
[1764717330802,0.00010338,91835.0,91834.0,0.26288463]
[1764717331099,0.00010338,91835.0,91834.0,0.36288463]
[1764717331903,0.00010338,91835.0,91834.0,0.56285154]
[1764717334201,0.00010338,91835.0,91834.0,0.46285154]
[1764717337004,0.00016329,91844.0,91843.0,0.067585]
[1764717337199,0.00016329,91844.0,91843.0,0.934425]
[1764717337401,0.00016329,91844.0,91843.0,0.573625]
[1764717337801,0.00025823,91844.0,91843.0,0.573625]
[1764717338108,0.00025823,91844.0,91843.0,0.673625]
[1764717338302,0.3608,91859.0,91858.0,0.05567]
[1764717338606,0.41913,91859.0,91858.0,0.05567]
[1764717339103,0.05833,91859.0,91858.0,0.05567]
[1764717339498,0.05833,91859.0,91858.0,0.15567]
[1764717341703,0.05933,91859.0,91858.0,0.15567]
[1764717342100,0.05833,91859.0,91858.0,0.15567]
[1764717342304,0.05933,91859.0,91858.0,0.15567]
[1764717342703,0.05833,91859.0,91858.0,0.15567]
[1764717343301,0.05933,91859.0,91858.0,0.15567]
[1764717344311,0.42013,91859.0,91858.0,0.15567]
[1764717344708,0.05833,91859.0,91858.0,0.15567]
[1764717345012,0.05933,91859.0,91858.0,0.15567]
[1764717346115,0.001,91859.0,91858.0,0.15567]
[1764717347213,0.001,91859.0,91858.0,0.15667]
[1764717347814,0.0108829,91861.0,91860.0,0.05567]
[1764717348010,0.0108829,91861.0,91860.0,0.05667]
[1764717348905,0.0108829,91861.0,91860.0,0.15667]
[1764717349710,0.0108824,91866.0,91865.0,0.0108822]
[1764717349912,0.0108824,91866.0,91865.0,0.0665522]
[1764717349913,0.0402924,91866.0,91865.0,0.0665522]
[1764717350115,0.0402924,91866.0,91865.0,0.5715522]
[1764717350913,0.0402924,91866.0,91865.0,0.6715522]
[1764717351511,0.0412924,91866.0,91865.0,0.6715522]
[1764717352104,0.0402924,91866.0,91865.0,0.6715522]
[1764717352916,0.0402924,91866.0,91865.0,0.75952439]
[1764717355016,0.0412924,91866.0,91865.0,0.75952439]
[1764717355517,0.0402924,91866.0,91865.0,0.75952439]
[1764717355815,0.02957329,91868.0,91867.0,0.0665522]
[1764717356508,0.02957329,91868.0,91867.0,0.4273522]
[1764717357307,0.06937539,91868.0,91867.0,0.4273522]
[1764717357507,0.07037539,91868.0,91867.0,0.4273522]
[1764717358118,0.06937539,91868.0,91867.0,0.5273522]
[1764717360817,0.07037539,91868.0,91867.0,0.5273522]
[1764717361720,0.06937539,91868.0,91867.0,0.5273522]
[1764717361918,0.00016329,91868.0,91867.0,0.5283522]
[1764717362218,0.4300104,91882.0,91881.0,0.05567]
[1764717362609,0.0692104,91882.0,91881.0,0.05567]
[1764717364210,0.0702104,91882.0,91881.0,0.15567]
[1764717364413,0.0702104,91882.0,91881.0,0.05567]
[1764717364719,0.0692104,91882.0,91881.0,0.05567]
[1764717364919,0.0702104,91882.0,91881.0,0.05567]
[1764717365114,0.001,91882.0,91881.0,0.05567]
[1764717365522,0.001,91882.0,91881.0,0.15567]
[1764717365724,0.001,91882.0,91881.0,0.15667]
[1764717365923,0.02895,91882.0,91881.0,0.15667]
[1764717366112,0.05774,91882.0,91881.0,0.15667]
[1764717370217,0.001,91882.0,91881.0,0.15667]
[1764717370420,0.00027208,91886.0,91885.0,0.0816301]
[1764717370721,0.02811329,91891.0,91890.0,0.0660695]
[1764717370922,0.00016329,91891.0,91890.0,0.5709495]
[1764717371627,0.02811329,91891.0,91890.0,0.5709495]
[1764717371822,0.02811329,91891.0,91890.0,0.6709495]
[1764717372119,0.03011329,91891.0,91890.0,0.6709495]
[1764717372320,0.05890329,91891.0,91890.0,0.6709495]
[1764717373410,0.05690329,91891.0,91890.0,0.6709495]
[1764717375230,0.02811329,91891.0,91890.0,0.6709495]
[1764717375423,0.00016329,91891.0,91890.0,0.6709495]
[1764717375823,0.02811329,91891.0,91890.0,0.6709495]
[1764717376923,0.05690329,91891.0,91890.0,0.6709495]
[1764717378431,0.4284183,91901.0,91900.0,0.05519]
[1764717378732,0.0676183,91901.0,91900.0,0.41599]
[1764717379531,0.0676183,91901.0,91900.0,0.51599]
[1764717380032,0.0686183,91901.0,91900.0,0.51599]
[1764717380622,0.0686183,91901.0,91900.0,0.41599]
[1764717380826,0.0686183,91901.0,91900.0,0.05519]
[1764717381025,0.0686183,91901.0,91900.0,0.0278]
[1764717381222,0.1186183,91901.0,91900.0,0.05519]
[1764717381420,0.0686183,91901.0,91900.0,0.14083159]
[1764717381623,0.0686183,91901.0,91900.0,0.05519]
[1764717381824,0.1086183,91901.0,91900.0,0.05519]
[1764717382132,0.1186183,91901.0,91900.0,0.05519]
[1764717383526,0.1186183,91901.0,91900.0,0.14393794]
[1764717383928,0.0686183,91901.0,91900.0,0.14393794]
[1764717384128,0.1086183,91901.0,91900.0,0.14393794]
[1764717385037,0.0686183,91901.0,91900.0,0.14393794]
[1764717385829,0.05774,91901.0,91900.0,0.14393794]
[1764717386731,0.05774,91901.0,91900.0,0.24393794]
[1764717387838,0.05774,91901.0,91900.0,0.15481624]
[1764717388937,0.05774,91901.0,91900.0,0.25481624]
[1764717390834,0.001,91901.0,91900.0,0.27037624]
[1764717391038,0.08426039,91910.0,91909.0,0.05519]
[1764717392031,0.08426039,91910.0,91909.0,0.0660672]
[1764717392233,0.08426039,91910.0,91909.0,0.1660672]
[1764717392934,0.08626039,91910.0,91909.0,0.1660672]
[1764717393249,0.08626039,91910.0,91909.0,0.18188734]
[1764717393434,0.07538329,91910.0,91909.0,0.18188734]
[1764717394044,0.05890329,91910.0,91909.0,0.18188734]
[1764717399848,0.10890329,91910.0,91909.0,0.01582014]
[1764717400037,0.08861,91908.0,91907.0,0.53777]
[1764717400238,0.08861,91908.0,91907.0,0.57256]
[1764717401041,0.08961,91908.0,91907.0,0.57256]
[1764717403053,0.08961,91908.0,91907.0,0.58869884]
[1764717404848,0.13961,91908.0,91907.0,0.58869884]
[1764717405050,0.13961,91908.0,91907.0,0.01613884]
[1764717405245,0.06897,91901.0,91900.0,0.66122794]
[1764717405447,0.1298482,91901.0,91900.0,0.08874794]
[1764717405642,0.1298482,91901.0,91891.0,0.00016329]
[1764717405643,0.0798489,91895.0,91891.0,0.00016329]
[1764717405846,0.0798489,91895.0,91894.0,0.39381]
[1764717406042,0.0798489,91895.0,91894.0,0.3608]
[1764717406247,0.0798489,91895.0,91894.0,0.44500717]
[1764717407254,0.0798489,91895.0,91894.0,0.53235115]
[1764717411348,0.1298489,91895.0,91894.0,0.46455115]
[1764717411544,0.10346352,91895.0,91894.0,0.01640717]
[1764717411743,0.0798492,91892.0,91891.0,0.00016329]
[1764717412055,0.51426382,91892.0,91891.0,0.00016329]
[1764717412452,0.51426382,91892.0,91891.0,0.01608837]
[1764717412850,0.51426382,91892.0,91891.0,0.10278254]
[1764717413042,0.46426382,91892.0,91891.0,0.10278254]
[1764717413246,0.51726382,91892.0,91891.0,0.10278254]
[1764717415458,0.51426382,91892.0,91891.0,0.10278254]
[1764717415658,0.51626382,91892.0,91891.0,0.01608837]
[1764717415862,0.51626382,91892.0,91891.0,0.04909837]
[1764717416157,0.4926492,91892.0,91891.0,0.01608837]
[1764717416764,0.4826492,91892.0,91891.0,0.01608837]
[1764717417258,0.7626492,91892.0,91891.0,0.01608837]
[1764717417453,0.4426492,91892.0,91891.0,0.01608837]
[1764717417647,0.4926492,91892.0,91891.0,0.01608837]
[1764717417852,0.46623402,91892.0,91891.0,0.01021175]
[1764717418055,0.0798505,91881.0,91880.0,0.14214156]
[1764717418363,0.0798505,91881.0,91877.0,0.04540955]
[1764717418364,0.0798509,91878.0,91877.0,0.07841955]
[1764717418752,0.0798509,91878.0,91877.0,0.12890011]
[1764717419855,0.0798509,91878.0,91877.0,0.21711322]
[1764717420463,0.0798509,91878.0,91877.0,0.17170367]
[1764717420959,0.0808509,91878.0,91877.0,0.17170367]
[1764717421151,0.0798509,91878.0,91877.0,0.17170367]
[1764717421353,0.0118809,91878.0,91877.0,0.28258467]
[1764717421554,0.0118809,91878.0,91877.0,0.4825516]
[1764717422064,0.001,91878.0,91877.0,0.9883516]
[1764717422367,0.0108809,91881.0,91880.0,0.0960704]
[1764717422761,0.0108809,91881.0,91880.0,0.0970704]
[1764717423467,0.00016329,91887.0,91883.0,0.0108801]
[1764717423468,0.0108802,91884.0,91883.0,0.0108801]
[1764717423653,0.0108802,91884.0,91883.0,0.4362101]
[1764717424267,0.0108802,91884.0,91883.0,0.4372101]
[1764717424463,0.00016329,91887.0,91883.0,0.4372101]
[1764717424464,0.01104319,91887.0,91886.0,0.0754099]
[1764717424765,0.00016329,91887.0,91886.0,0.0754099]
[1764717424960,0.00016329,91887.0,91886.0,0.0764099]
[1764717425160,0.00016329,91887.0,91886.0,0.1764099]
[1764717425554,0.0108781,91902.0,91901.0,0.010878]
[1764717425761,0.0108778,91905.0,91904.0,0.0754077]
[1764717425959,0.0108778,91905.0,91904.0,0.06453]
[1764717426865,0.0108778,91905.0,91904.0,0.16453]
[1764717427665,0.0430078,91905.0,91904.0,0.16453]
[1764717429462,0.001,91905.0,91904.0,0.16453]
[1764717430375,0.03129329,91914.0,91909.0,0.0108771]
[1764717430573,0.04216989,91914.0,91913.0,0.42533]
[1764717431068,0.01103989,91914.0,91913.0,0.42533]
[1764717431865,0.01303989,91914.0,91913.0,0.52533]
[1764717432159,0.0816,91925.0,91924.0,0.06453]
[1764717432557,0.0816,91925.0,91924.0,0.15218475]
[1764717433774,0.0826,91925.0,91924.0,0.15218475]
[1764717433973,0.11291,91925.0,91924.0,0.08765475]
[1764717434167,0.06191,91916.0,91915.0,0.20683476]
[1764717434370,0.06191,91916.0,91915.0,0.0646932]
[1764717434568,0.0727864,91916.0,91915.0,0.0646932]
[1764717435162,0.0727864,91916.0,91915.0,0.15362676]
[1764717435358,0.0727864,91916.0,91915.0,0.0646932]
[1764717437175,0.0747864,91916.0,91915.0,0.0646932]
[1764717439170,0.0747864,91916.0,91915.0,0.15031211]
[1764717439881,0.1247864,91916.0,91915.0,0.15031211]
[1764717440078,0.0747864,91916.0,91915.0,0.15031211]
[1764717440282,0.0747864,91916.0,91915.0,0.11736211]
[1764717440479,0.0747864,91916.0,91915.0,0.15031211]
[1764717440980,0.0747864,91916.0,91915.0,0.11736211]
[1764717441579,0.0747864,91916.0,91915.0,0.15031211]
[1764717441778,0.002,91916.0,91915.0,0.15131211]
[1764717441967,0.002,91916.0,91915.0,0.25131211]
[1764717442981,0.002,91916.0,91915.0,0.26243211]
[1764717443168,0.04227716,91926.0,91925.0,0.06453]
[1764717443478,0.07305716,91926.0,91925.0,0.06453]
[1764717444268,0.07605716,91926.0,91925.0,0.03158]
[1764717444466,0.0108757,91922.0,91921.0,0.86548]
[1764717444666,0.0727857,91922.0,91921.0,0.93001]
[1764717446167,0.0118757,91922.0,91921.0,1.03001]
[1764717446783,0.0430057,91922.0,91921.0,1.03001]
[1764717447173,0.0757857,91922.0,91921.0,0.93001]
[1764717453484,0.0138757,91922.0,91921.0,0.93001]
[1764717454589,0.0138757,91922.0,91921.0,1.03001]
[1764717456671,0.0442257,91922.0,91921.0,1.03001]
[1764717456887,0.0728157,91922.0,91921.0,1.03001]
[1764717457683,0.0728157,91922.0,91921.0,0.93001]
[1764717458186,0.0442257,91922.0,91921.0,0.93001]
[1764717458388,0.03335,91922.0,91921.0,0.93001]
[1764717458575,0.003,91922.0,91921.0,0.93001]
[1764717458776,0.03335,91922.0,91921.0,0.93001]
[1764717459186,0.03335,91922.0,91921.0,1.03001]
[1764717459387,0.003,91922.0,91921.0,1.03001]
[1764717465196,0.0728157,91922.0,91921.0,1.03001]
[1764717465397,0.0728157,91922.0,91921.0,0.93001]
[1764717465599,0.06194,91922.0,91921.0,0.93001]
[1764717465799,0.003,91922.0,91921.0,0.93001]
[1764717466504,0.003,91922.0,91921.0,1.03001]
[1764717466713,0.003,91922.0,91921.0,1.03101]
[1764717469106,0.03335,91922.0,91921.0,1.03101]
[1764717471014,0.06194,91922.0,91921.0,1.03101]
[1764717476418,0.06194,91922.0,91921.0,1.03001]
[1764717477009,0.06194,91922.0,91921.0,1.0408858]
[1764717477517,0.06194,91922.0,91921.0,1.0407658]
[1764717480415,0.003,91922.0,91921.0,1.0407658]
[1764717480605,0.3716728,91947.0,91933.0,0.0684544]
[1764717480810,0.0108739,91937.0,91936.0,0.0809338]
[1764717481114,0.0698136,91940.0,91939.0,0.0108733]
[1764717481319,0.43755,91956.0,91939.0,0.50556]
[1764717481501,0.07675,91956.0,91955.0,0.05758]
[1764717481701,0.11129323,91956.0,91955.0,0.05758]
[1764717482802,0.16129323,91956.0,91955.0,0.05758]
[1764717483011,0.16229323,91956.0,91955.0,0.05758]
[1764717483314,0.11229323,91956.0,91955.0,0.05758]
[1764717483511,0.16229323,91956.0,91955.0,0.05758]
[1764717483908,0.0683727,91947.0,91946.0,0.0001632]
[1764717484108,0.1183727,91947.0,91946.0,0.0001632]
[1764717484314,0.1183727,91947.0,91946.0,0.0166724]
[1764717484525,0.1183727,91947.0,91946.0,0.0001632]
[1764717484817,0.09201492,91947.0,91946.0,0.01660365]
[1764717485017,0.14201492,91947.0,91946.0,0.0011632]
[1764717485412,0.09201492,91947.0,91946.0,0.0011632]
[1764717485616,0.14201492,91947.0,91946.0,0.0011632]
[1764717485813,0.14201492,91947.0,91946.0,0.01779145]
[1764717486019,0.14201492,91947.0,91946.0,0.0011632]
[1764717486222,0.14501492,91947.0,91946.0,0.0011632]
[1764717486608,0.09501492,91947.0,91946.0,0.0011632]
[1764717486907,0.1213727,91947.0,91946.0,0.07649815]
[1764717487104,0.1213727,91947.0,91946.0,0.0598632]
[1764717487712,0.0713727,91947.0,91946.0,0.0598632]
[1764717487910,0.1213727,91947.0,91946.0,0.0598632]
[1764717488721,0.1113727,91947.0,91946.0,0.07693109]
[1764717489123,0.1213727,91947.0,91946.0,0.04719109]
[1764717491721,0.1213727,91947.0,91946.0,0.07693109]
[1764717491911,0.1213727,91947.0,91946.0,0.01823109]
[1764717492224,0.3613727,91947.0,91946.0,0.01823109]
[1764717492416,0.39500335,91947.0,91946.0,0.01823109]
[1764717492609,0.38500335,91947.0,91946.0,0.01823109]
[1764717492814,0.09500335,91947.0,91946.0,0.01823109]
[1764717493014,0.14500335,91947.0,91946.0,0.01823109]
[1764717493217,0.09500335,91947.0,91946.0,0.01823109]
[1764717493523,0.42500335,91947.0,91946.0,0.01823109]
[1764717494216,0.41500335,91947.0,91946.0,0.01823109]
[1764717494931,0.0683754,91924.0,91923.0,0.4195]
[1764717495110,0.1183754,91924.0,91923.0,0.4195]
[1764717495312,0.0683766,91914.0,91913.0,0.4195]
[1764717495616,0.1083766,91914.0,91913.0,0.92398]
[1764717495916,0.0683766,91914.0,91913.0,0.94033413]
[1764717497918,0.0683766,91914.0,91913.0,1.02841698]
[1764717498219,0.0683766,91914.0,91913.0,0.49419698]
[1764717498422,0.3883766,91914.0,91913.0,0.01635413]
[1764717498617,0.0683777,91905.0,91904.0,0.0001632]
[1764717498822,0.1183777,91905.0,91904.0,0.0001632]
[1764717499018,0.3783777,91905.0,91904.0,0.0001632]
[1764717499326,0.1183777,91905.0,91904.0,0.01726265]
[1764717499516,0.0683777,91905.0,91904.0,0.01726265]
[1764717499821,0.1183777,91905.0,91904.0,0.01726265]
[1764717500021,0.0683777,91905.0,91904.0,0.04622265]
[1764717500214,0.1083777,91905.0,91904.0,0.07596265]
[1764717500415,0.1183777,91905.0,91904.0,0.07596265]
[1764717501522,0.1083777,91905.0,91904.0,0.07596265]
[1764717501723,0.1083777,91905.0,91904.0,0.07696265]
[1764717501913,0.1083777,91905.0,91904.0,0.01826265]
[1764717502114,0.3983777,91905.0,91904.0,0.01826265]
[1764717502315,0.3883777,91905.0,91904.0,0.01826265]
[1764717502622,0.5483777,91905.0,91904.0,0.01826265]
[1764717503422,0.5483777,91905.0,91886.0,0.00027208]
[1764717503423,0.0683798,91887.0,91886.0,0.05897208]
[1764717503628,0.1183798,91887.0,91886.0,0.05897208]
[1764717504012,0.0683798,91887.0,91886.0,0.05897208]
[1764717504218,0.0683798,91887.0,91886.0,0.07549956]
[1764717504617,0.0683798,91887.0,91886.0,0.07649956]
[1764717504828,0.0683798,91887.0,91886.0,0.05997208]
[1764717505529,0.0683798,91887.0,91886.0,0.07686028]
[1764717506328,0.0683798,91887.0,91886.0,0.16241035]
[1764717506624,0.0683798,91887.0,91886.0,0.16541035]
[1764717509523,0.0108796,91889.0,91887.0,0.0108798]
[1764717509728,0.0108796,91889.0,91888.0,0.0587]
[1764717510215,0.0001632,91896.0,91895.0,0.0587]
[1764717510417,0.011042,91896.0,91895.0,0.0587]
[1764717510623,0.068542,91896.0,91895.0,0.0587]
[1764717512132,0.085342,91896.0,91895.0,0.0587]
[1764717512828,0.085342,91896.0,91895.0,0.0617]
[1764717513833,0.068542,91896.0,91895.0,0.0617]
[1764717514134,0.085732,91896.0,91895.0,0.0617]
[1764717514326,0.125732,91896.0,91895.0,0.0617]
[1764717514523,0.085732,91896.0,91895.0,0.0617]
[1764717514928,0.135732,91896.0,91895.0,0.0617]
[1764717515132,0.085732,91896.0,91895.0,0.003]
[1764717515327,0.365732,91896.0,91895.0,0.003]
[1764717515532,0.415732,91896.0,91895.0,0.003]
[1764717516437,0.085732,91896.0,91895.0,0.003]
[1764717516735,0.135732,91896.0,91895.0,0.003]
[1764717517433,0.125732,91896.0,91895.0,0.003]
[1764717517836,0.135732,91896.0,91895.0,0.003]
[1764717522130,0.068542,91896.0,91895.0,0.16093]
[1764717522439,0.068542,91896.0,91895.0,0.06093]
[1764717522640,0.085432,91896.0,91895.0,0.06093]
[1764717524726,0.038732,91896.0,91895.0,0.06093]
[1764717525133,0.067472,91896.0,91895.0,0.06093]
[1764717525935,0.067472,91896.0,91895.0,0.16093]
[1764717526243,0.067472,91896.0,91895.0,0.06093]
[1764717527239,0.084362,91896.0,91895.0,0.06093]
[1764717527946,0.084362,91896.0,91895.0,0.16093]
[1764717528138,0.084362,91896.0,91895.0,0.06093]
[1764717529343,0.434362,91896.0,91895.0,0.003]
[1764717529545,0.15769431,91896.0,91895.0,0.003]
[1764717534754,0.14769431,91896.0,91895.0,0.003]
[1764717535750,0.0680598,91887.0,91886.0,0.01716028]
[1764717535942,0.1180598,91887.0,91886.0,0.01716028]
[1764717536143,0.1413994,91887.0,91886.0,0.01716028]
[1764717536343,0.1313994,91887.0,91886.0,0.01716028]
[1764717536646,0.1413994,91887.0,91886.0,0.01716028]
[1764717537758,0.1413994,91887.0,91886.0,0.02016028]
[1764717537952,0.14139722,91887.0,91886.0,0.02016028]
[1764717540345,0.09139722,91887.0,91886.0,0.07809028]
[1764717540751,0.14139722,91887.0,91886.0,0.02016028]
[1764717540959,0.09139722,91887.0,91886.0,0.02016028]
[1764717541459,0.42139722,91887.0,91886.0,0.02016028]
[1764717541757,0.0680609,91878.0,91877.0,0.0001632]
[1764717541960,0.4180609,91878.0,91877.0,0.0001632]
[1764717542253,0.43154913,91878.0,91877.0,0.0167416]
[1764717542455,0.42154913,91878.0,91877.0,0.0001632]
[1764717542642,0.46154913,91878.0,91877.0,0.0001632]
[1764717542844,0.49154913,91878.0,91877.0,0.0001632]
[1764717543058,0.20154913,91878.0,91877.0,0.0001632]
[1764717543255,0.44154913,91878.0,91877.0,0.0001632]
[1764717543858,0.44254913,91878.0,91877.0,0.0001632]
[1764717544058,0.42254913,91878.0,91877.0,0.0001632]
[1764717544361,0.47254913,91878.0,91877.0,0.0001632]
[1764717546054,0.45254913,91878.0,91877.0,0.0001632]
[1764717546363,0.46254913,91878.0,91877.0,0.0001632]
[1764717547260,0.45254913,91878.0,91877.0,0.0001632]
[1764717550265,0.46254913,91878.0,91877.0,0.0001632]
[1764717551265,0.47254913,91878.0,91877.0,0.0001632]
[1764717551859,0.066692,91869.0,91868.0,0.15814632]